Cogmind - Beta 9.4 @@@ ROGUE MODE // 2020.01.29 @ 17:45:09 Player: ratty Result: Destroyed by S-10 Pest with Light Assault Rifle Performance ------------- Evolutions (0) 0 Regions Visited (1) 200 Robots Destroyed (9) 45 Value Destroyed (249) 249 Prototype IDs (0) 0 Alien Tech Used (0) 0 Bonus (0) 0 TOTAL SCORE: 494 Bonus ------- None Cogmind --------- Core Integrity 0/250 Matter 285/300 Energy 46/125 System Corruption 1% Temperature Cool (0) Movement Core (150) Ox2 Location -10/Materials Parts ------- > --- POWER (1) -------- Light Ion Engine > --- PROPULSION (2) --- Flight Unit > --- UTILITY (2) ------ Small Storage Unit Terrain Scanner > --- WEAPON (2) ------- (None) > --- INVENTORY (6) ---- Large Storage Unit Peak State ------------ > --- POWER ------------ Light Ion Engine > --- PROPULSION ------- Light Treads Light Treads > --- UTILITY ---------- Small Storage Unit Large Storage Unit > --- WEAPON ----------- Medium Laser Assault Rifle > --- INVENTORY -------- Light Ion Engine Small Laser [Rating: 7] Favorites ----------- Power Light Ion Engine Engine Light Ion Engine Propulsion Light Treads Treads Light Treads Flight Unit Flight Unit Utility Small Storage Unit Device Terrain Scanner Storage Small Storage Unit Weapon Assault Rifle Energy Gun Medium Laser Ballistic Gun Assault Rifle Special Melee Weapon Datajack Build | -11 -10 ------- Run | Scr Mat Slots Evolved . | . . Power . | . . Propulsion . | . . Utility . | . . Weapon . | . . Parts Attached 15 | 5 10 Power 2 | 1 1 Engine 2 | 1 1 Core . | . . Reactor . | . . Propulsion 3 | 2 1 Treads 2 | 2 . Leg . | . . Wheel . | . . Hover . | . . Flight 1 | . 1 Utility 4 | . 4 Device 1 | . 1 Storage 3 | . 3 Processor . | . . Hackware . | . . Protection . | . . Artifact . | . . Weapon 6 | 2 4 Energy Gun 3 | 1 2 Energy Cannon . | . . Ballistic Gun 1 | 1 . Ballistic Cannon . | . . Launcher . | . . Special Weapon . | . . Impact Weapon . | . . Slashing Weapon . | . . Piercing Weapon . | . . Special Melee Weapon 2 | . 2 Unidentified Prototypes . | . . Parts Lost 9 | . 9 Power 1 | . 1 Propulsion 2 | . 2 Utility . | . . Weapon 6 | . 6 Highest Loss Streak 7 | . 7 Average Slot Usage (%) 53 | . 53 Engine 4 | . 4 Treads 10 | . 10 Flight 4 | . 4 Storage 12 | . 12 Energy Gun 8 | . 8 Ballistic Gun 5 | . 5 Special Melee Weapon 4 | . 4 Naked Turns . | . . Heaviest Build 11 | 7 11 Greatest Support 3 | 3 3 Greatest Overweight (x) 3 | 2 3 Average Overweight (x) 1 | 1 1 Largest Inventory Capacity 12 | 4 12 Average Capacity 5 | 4 5 Most Carried 4 | 2 4 Average Carried 2 | 1 2 Final Capacity 6 | 4 6 Final Carried 2 | 2 1 Class Distribution -------------------- 100% | Mutant Dominant Class ---------------- Mutant | -10/Materials Resources | -11 -10 ----------- Run | Scr Mat Matter Collected 372 | 250 122 Remotely . | . . Salvage Created 272 | . 272 Parts 17 | . 17 Haulers Intercepted . | . . Recyclers Shooed . | . . Parts Field Recycled . | . . Retrieved Matter . | . . Parts Self-Destructed . | . . Prevented . | . . Kills | -11 -10 ------- Run | Scr Mat Combat Hostiles Destroyed 8 | . 8 Guns 8 | . 8 Classes Destroyed 3 | . 3 Watcher 1 | . 1 Swarmer 3 | . 3 Grunt 5 | . 5 Best Kill Streak 4 | . 4 Combat Bots Only 2 | . 2 Max Kills in Single Turn 1 | . 1 Gunslinging . | . . Exploded . | . . Melee . | . . Uniques/NPCs Destroyed . | . . Combat | -11 -10 -------- Run | Scr Mat Damage Taken 972 | . 972 Core 251 | . 251 Absorbed by Shields . | . . Core Remaining (%) 100 | 100 . Volleys Fired 55 | . 55 Largest 2 | . 2 Hottest 70 | . 70 Shots Fired 62 | . 62 Gun 62 | . 62 Cannon . | . . Launcher . | . . Special . | . . Kinetic 29 | . 29 Thermal 8 | . 8 Explosive . | . . Electromagnetic 25 | . 25 Robot Hit Streak 20 | . 20 Robot Miss Streak 6 | . 6 Penetration Max . | . . Secondary Targets 1 | . 1 Max Gunslinging Chain 1 | . 1 Shots Hit Robots 42 | . 42 Core Hits 15 | . 15 Critical Hits . | . . Critical Kills . | . . Critical Parts Destroyed . | . . Melee Attacks 4 | . 4 Impact . | . . Slashing . | . . Piercing . | . . Sneak Attacks . | . . Combat Hostiles . | . . Follow-up Attacks . | . . Damage Inflicted 576 | . 576 Guns 574 | . 574 Cannons . | . . Explosions . | . . Melee . | . . Ramming 2 | . 2 Kinetic 282 | . 282 Thermal 50 | . 50 Explosive . | . . Electromagnetic 242 | . 242 Impact . | . . Slashing . | . . Piercing . | . . Highest Corruption 1 | . 1 Average Corruption 1 | . 1 Corruption Purged . | . . Overload Shots . | . . Overflow Damage . | . . Projectiles . | . . Explosions . | . . Melee . | . . Knockbacks . | . . Impact . | . . Kinetic . | . . Secondary . | . . Self-Inflicted Damage 1 | . 1 Shots . | . . Rammed 2 | . 2 Targets Rammed 2 | . 2 Kicked . | . . Crushed . | . . Highest Temperature 35 | . 35 Average Temperature 11 | . 11 Received Heat Transfer 282 | . 282 Siege Activations . | . . Robots Corrupted . | . . Combat Hostiles . | . . Parts Fried 4 | . 4 Impact Corruptions . | . . Robots Melted . | . . Combat Hostiles . | . . Parts Melted 2 | . 2 Heat Transferred 148 | . 148 Parts Sabotaged . | . . Parts Stolen . | . . Parts Stripped . | . . Power Chain Reactions . | . . Missiles Intercepted . | . . Alert | -11 -10 ------- Run | Scr Mat Peak Influence 237 | . 237 Average Influence 40 | . 50 Maximum Alert Level 1 | . 1 Low Security (%) 95 | 100 95 Level 1 4 | . 4 Level 2 . | . . Level 3 . | . . Level 4 . | . . Level 5 . | . . High Security . | . . Max Security . | . . Squads Dispatched 3 | . 3 Investigation 2 | . 2 Extermination . | . . Reinforcement 1 | . 1 Assault . | . . Garrison . | . . Intercept . | . . Construction Impeded . | . . Haulers Reinforced . | . . Stealth | -11 -10 --------- Run | Scr Mat Distress Signals 1 | . 1 Communications Jammed . | . . Distress Signals . | . . Times Spotted 15 | . 15 Peak Tracking Total 6 | . 6 Tactical Retreats . | . . Traps | -11 -10 ------- Run | Scr Mat Traps Triggered . | . . Indirectly . | . . Trap Hack Attempts . | . . Triggered . | . . Disarmed 6 | . 6 Reprogrammed . | . . Reused . | . . Traps Extracted . | . . Installed . | . . Triggered . | . . Machines | -11 -10 ---------- Run | Scr Mat Machines Disabled 2 | . 2 Max in Single Turn 1 | . 1 Machines Sabotaged . | . . Garrisons Compromised . | . . Overloaded Fab Kills . | . . Fab Network Shutdowns . | . . Hacking | -11 -10 --------- Run | Scr Mat Machines Accessed 3 | . 3 Terminals 3 | . 3 Fabricators . | . . Repair Stations . | . . Recycling Units . | . . Scanalyzers . | . . Garrison Access . | . . Total Hacks 14 | . 14 Successful 9 | . 9 Failed 5 | . 5 Catastrophic . | . . Database Lockouts . | . . Manual . | . . Terminals 14 | . 14 Fabricators . | . . Repair Stations . | . . Recycling Units . | . . Scanalyzers . | . . Garrison Access . | . . Terminal Hacks 9 | . 9 Record 3 | . 3 Level Access Points 1 | . 1 Alert Level 1 | . 1 Locate Traps 1 | . 1 Disarm Traps 1 | . 1 Maintenance Status 1 | . 1 Hauler Manifests 1 | . 1 Fabricator Hacks . | . . Repair Station Hacks . | . . Recycling Unit Hacks . | . . Scanalyzer . | . . Garrison Access Hacks . | . . Unauthorized Hacks . | . . Terminals . | . . Fabricators . | . . Repair Stations . | . . Recycling Units . | . . Scanalyzers . | . . Garrison Access . | . . Data Cores Recovered . | . . Used . | . . Hacking Detections 3 | . 3 Full Trace Events 3 | . 3 Feedback Events 1 | . 1 Corruption 1 | . 1 Feedback Blocked . | . . Robot Schematics Acquired . | . . Robots Built . | . . Matter . | . . Time . | . . Total Robot Build Rating . | . . Part Schematics Acquired . | . . Parts Built . | . . Matter . | . . Time . | . . Total Part Build Rating . | . . Parts Repaired . | . . Time . | . . Parts Recycled . | . . Recycled Matter . | . . Retrieved Matter . | . . Retrieved Components . | . . Parts Scanalyzed . | . . Part Schematics Acquired . | . . Parts Damaged . | . . Bothacking | -11 -10 ------------ Run | Scr Mat Used RIF Installer . | . . Robots Hacked 1 | . 1 Non-combat . | . . Combat 1 | . 1 Robot Hacks Applied 1 | . 1 parse_system 1 | . 1 Relay Couplers Released . | . . Robots Rewired . | . . Allies Hacked . | . . Hacks Repelled . | . . Allies | -11 -10 -------- Run | Scr Mat Total Allies . | . . Largest Group . | . . Highest-Rated Group . | . . Highest-Rated Ally . | . . Total Orders . | . . Ally Attacks . | . . Total Damage . | . . Kills . | . . Allies Corrupted . | . . Allies Melted . | . . Intel | -11 -10 ------- Run | Scr Mat Robot Analysis Total . | . . Derelict Logs Recovered . | . . Drone Launches . | . . Drone Recoveries . | . . Exploration | -11 -10 ------------- Run | Scr Mat Turns Passed 323 | 62 261 Spaces Moved 141 | 46 95 Core 141 | 46 95 Treads . | . . Legs . | . . Wheels . | . . Hover . | . . Flight . | . . Fastest Speed 50 | 50 100 Average Speed 118 | 111 122 Slowest Speed 200 | 150 200 Overloaded Moves . | . . Propulsion Burnouts . | . . Robots Hopped . | . . Cave-ins Triggered . | . . Exploration Rate (%) 12 | 3 22 Regions Visited 1 Branch Regions . Pre-discovered Areas . | . . Known Exits Taken . | . . Unknown Exits Taken 1 | 1 . Scrap Searched . | . . Spaces Dug . | . . Terrain Destroyed . | . . Melee . | . . Projectile . | . . AOE . | . . Actions | -11 -10 --------- Run | Scr Mat Total 232 | 57 175 Wait . | . . Move 140 | 45 95 Hop . | . . Pick Up 14 | 7 7 Fast Attach . | . . Attach 15 | 5 10 Detach 2 | . 2 Swap . | . . Drop . | . . Fire 55 | . 55 Melee 4 | . 4 Ram 2 | . 2 Kick . | . . Crush . | . . Escape Stasis . | . . Rewire . | . . Trap . | . . Miscellaneous . | . . Route ------- -11/Scrapyard -10/Materials (discovered 3 exits: Mat x3) History --------- Turn | Location | Event 9 | -11/Scrapyard | Discovered new exit (range 16) 63 | -11/Scrapyard | Entered Materials 193 | -10/Materials | Core integrity fell below 50% 221 | -10/Materials | Lost 7 parts (1p2n4w) 285 | -10/Materials | Core integrity fell below 20% 300 | -10/Materials | Build established: Mutant 322 | -10/Materials | Identified exit to Materials 324 | -10/Materials | Destroyed by S-10 Pest with Light Assault Rifle Last Messages --------------- You may prefer to play using a different font style. Try some of the others via the option menu's first option. K-01 Serf collects debris. S-10 Pest destroyed. K-01 Serf collects debris. Acquired Terrain Scanner. K-01 Serf collects debris. EM Pulse Gun destroyed. K-01 Serf collects debris. Connecting with Terminal... >>Access(Main) Found 3 level access points to Materials: (62,20) (14,8) (8,59) Map updated. Feedback: System corruption (+1%). ALERT: Suspicious activity at Terminal M008. Dispatching Investigation squad. R-06 Scavenger collects Lgt. Ion Engine. Map ----- +----------------------------------------------------+ | ?????????????????????????????# ?????# #???????? | | ?????????????????????????????# ?????# #???????? | | ?????????????????????# ????# ?????# #???????? | | ?????????????????????# ????# ?????+ #???????? | | ?????????????????????# ???# ?????# #???????? | | ??????????????????????# ####+#???## #???????? | | ??????????????????????# ##### #???????? | | ??????????????????????+ #???????? | | ??????????????????????# #???????? | | ??????????????????????# #???????? | | ??????????????????????# """ #???????? | | ??????????????????????# """ #???##+## | | ??????????????????????# """ "T #### | | ??????????????????????# " % | | ??????????????????????# "" % | | ??????????????????????# % ###### | | ??????????????????????# ###??## | | ??????????????????????# k ""#???# ##### | | ??????????????????????# T"#???# | | ??????????????????????# ""#???####+######## | | ??????????????????????# ###???# #?? | | ??????????????????????# #?????# "T" #?? | | ???????????## ####### ####### """ #?? | | ?????????? r s % # #?? | | ?????????? s r ! % ###########?? | | ?????????? %= m @! % #???######??? | | ???????????###+###########"T"##### #??##!! !##?? | | ?????????????????????????#"""#???# #??#! !#?? | | ?????????????????????????#####???# #??# !#?? | | ?????????????????????????????????# #### ##? | | ?????????????????????????????????# #? | | ?????????????????????????????????# #? | | ?????????????????????????????????# #? | | ?????????????????????????????????################? | | ?????????????????????????????????????????????????? | | ?????????????????????????????????????????????????? | | ?????????????????????????????????????????????????? | | ?????????????????????????????????????????????????? | | ?????????????????????????????????????????????????? | | | | | | | | | | | | | | | | | | | | | | | +----------------------------------------------------+ Best States ------------- Heat Dissipation 25 Energy Generation 5 Energy Capacity 125 Matter Stores 300 Matter Capacity 300 Sight Range 16 Terrain Scan Density 10 Evasion (%) 50 Item Schematics ----------------- None Robot Schematics ------------------ None Fabricated ------------ Nothing Alien Tech Used ----------------- None Achievements -------------- Storm Trooper Challenges ------------ None Game ------ Seed ProcessingGodChip Manual? 0 Play Time 00:15:25 Cumulative 2.2 hours Start 2020.01.29 @ 17:32:27 End 2020.01.29 @ 17:45:09 Sessions 1 Manual Loads 0 Difficulty Rogue Special Mode None Game No. 7 Rogue 7 Adventurer 0 Explorer 0 Win Type - Total 0 Types 0/0/0/0/0/0/0 Lore% 1 Gallery% 3 Achievement% 2 Wizard Run 0 Options --------- ASCII 0 Keyboard 0 Movement Mouse Keybinds 0 Fullscreen 1 Font 18/SmallcapsGlow Map View 76x50 Tactical HUD 0 Map Filters NONE Filters NONE Steam 1 RUN: 8b8a3eb5-4d51-47c9-8ae8-e60b2a342128